fUSD/lending_fUSD_20240725
["ID","MTS","AMOUNT","RATE_DAILY","PERIOD"]
[333206662,1721945461635,-197.32,0.00010999,2]
[333206663,1721945461645,-500.0,0.00010999,2]
[333206664,1721945461655,-500.0,0.00010999,2]
[333206665,1721945461665,-500.0,0.00010999,2]
[333206666,1721945461674,-500.0,0.00010999,2]
[333206667,1721945461683,-500.0,0.00010999,2]
[333206668,1721945461693,-500.0,0.00010999,2]
[333206669,1721945461702,-500.0,0.00010999,2]
[333206670,1721945461712,-1024.22,0.00010999,2]
[333206671,1721945461722,-1024.22,0.00010999,2]
[333206672,1721945461732,-1024.22,0.00010999,2]
[333206673,1721945461742,-1024.22,0.00010999,2]
[333206674,1721945461752,-1024.22,0.00010999,2]
[333206675,1721945461762,-1024.22,0.00010999,2]
[333206676,1721945461771,-1024.22,0.00010999,2]
[333206677,1721945461781,-1024.22,0.00010999,2]
[333206678,1721945461791,-1024.22,0.00010999,2]
[333206679,1721945461801,-1024.22,0.00010999,2]
[333206680,1721945461811,-1024.26069077,0.00010999,2]
[333206681,1721945461822,-738.56,0.00010999,2]
[333206682,1721945461831,-738.56,0.00010999,2]
[333206683,1721945461840,-738.56,0.00010999,2]
[333206684,1721945461850,-738.56,0.00010999,2]
[333206685,1721945461860,-738.56,0.00010999,2]
[333206686,1721945461871,-738.56,0.00010999,2]
[333206687,1721945461880,-738.56,0.00010999,2]
[333206688,1721945461890,-738.56,0.00010999,2]
[333206689,1721945461899,-738.56,0.00010999,2]
[333206690,1721945461910,-738.56,0.00010999,2]
[333206691,1721945461920,-738.56,0.00010999,2]
[333206692,1721945461929,-738.56442742,0.00010999,2]
[333206693,1721945461939,-581.17,0.00010999,2]
[333206694,1721945461949,-500.0,0.00010999,2]
[333206695,1721945461959,-336.6207,0.00010999,2]
[333206696,1721945461969,-500.0,0.00010999,2]
[333206697,1721945461978,-500.0,0.00010999,2]
[333206698,1721945461988,-500.0,0.00010999,2]
[333206699,1721945461998,-500.0,0.00010999,2]
[333206700,1721945462008,-500.0,0.00010999,2]
[333206701,1721945462018,-500.0,0.00010999,2]
[333206702,1721945462028,-500.0,0.00010999,2]
[333206703,1721945462037,-500.0,0.00010999,2]
[333206704,1721945462046,-500.0,0.00010999,2]
[333206705,1721945462055,-500.0,0.00010999,2]
[333206706,1721945462064,-559.0,0.00010999,2]
[333206707,1721945462074,-785.55,0.00010999,2]
[333206708,1721945462083,-772.29,0.00010999,2]
[333206709,1721945462093,-785.55,0.00010999,2]
[333206710,1721945462102,-772.29,0.00010999,2]
[333206711,1721945462111,-785.55,0.00010999,2]
[333206712,1721945462123,-772.29,0.00010999,2]
[333206713,1721945462133,-785.55,0.00010999,2]
[333206714,1721945462146,-772.29,0.00010999,2]
[333206715,1721945462156,-785.55,0.00010999,2]
[333206716,1721945462167,-772.29,0.00010999,2]
[333206717,1721945462177,-785.55,0.00010999,2]
[333206718,1721945462189,-772.29,0.00010999,2]
[333206719,1721945462199,-785.55,0.00010999,2]
[333206720,1721945462209,-772.29,0.00010999,2]
[333206721,1721945462220,-785.55,0.00010999,2]
[333206722,1721945462230,-772.29,0.00010999,2]
[333206723,1721945462239,-500.0,0.00010999,2]
[333206724,1721945462249,-785.55,0.00010999,2]
[333206725,1721945462259,-772.29,0.00010999,2]
[333206726,1721945462268,-500.0,0.00010999,2]
[333206727,1721945462278,-500.0,0.00010999,2]
[333206728,1721945462288,-772.29,0.00010999,2]
[333206729,1721945462297,-500.0,0.00010999,2]
[333206730,1721945462306,-772.29,0.00010999,2]
[333206731,1721945462316,-500.0,0.00010999,2]
[333206732,1721945462325,-785.55,0.00010999,2]
[333206733,1721945462335,-772.35,0.00010999,2]
[333206734,1721945462344,-500.0,0.00010999,2]
[333206735,1721945462354,-785.74,0.00010999,2]
[333206736,1721945462363,-545.82,0.00010999,2]
[333206737,1721945462375,-66354.43774785,0.00011,2]
[333206738,1721945462806,-949.5000001,0.00011,2]
[333206739,1721945462822,-5232.56824967,0.00011,2]
[333206740,1721945462959,-1319.07941141,0.00011,2]
[333206741,1721945462975,-8754.77445779,0.00011,2]
[333206742,1721945462986,-1500.04768187,0.00011,2]
[333206743,1721945462999,-495.58079881,0.00011,2]
[333206744,1721945463010,-40600.0994789,0.00011,2]
[333206745,1721945463020,-386108.03072185,0.00011,2]
[333206746,1721945463031,-13187.61551572,0.00011,2]
[333206747,1721945463056,-367282.0500174,0.00011,2]
[333206748,1721945463067,-1950.0,0.00011,2]
[333206749,1721945463351,-273.42852108,0.000101,2]
[333206750,1721945463361,-370.51,0.0001081,2]
[333206751,1721945463372,-79063.76819622,0.00011,2]
[333206752,1721945463384,-1655.07836458,0.00011,2]
[333206753,1721945463395,-500.0,0.00011,2]
[333206754,1721945463429,-370.51,0.0001081,2]
[333206755,1721945463438,-275712.05837001,0.00011,2]
[333206756,1721945463450,-34874.789796,0.00011,2]
[333206757,1721945463462,-798.97708734,0.00011,2]
[333206758,1721945463474,-9309.10477623,0.00011,2]
[333206759,1721945463486,-5845.77984986,0.00011,2]
[333206795,1721946633216,-392.36702055,8.219e-05,2]
[333206796,1721946633229,-510.60297945,8.219e-05,2]
[333206797,1721946633240,-593.122,9.532e-05,2]
[333206798,1721946633250,-250.0,9.667e-05,2]
[333206799,1721946633260,-182.96799344,9.669e-05,2]
[333206800,1721946633284,-64.37200656,9.669e-05,2]
[333206801,1721946633294,-1000.0,9.683e-05,2]
[333206802,1721946633304,-300.0,9.828e-05,2]
[333206803,1721946633314,-12282.82799344,9.829e-05,2]
[333206804,1721946633336,-11503.63255774,9.829e-05,2]
[333206805,1721946633347,-113.53944882,9.829e-05,2]
[333206806,1721946633358,-150.0,9.888e-05,2]
[333206807,1721946633368,-200.0,9.9e-05,3]
[333206808,1721946633378,-500.0,0.0001,3]
[333206809,1721946633388,-171.01,0.00010012,2]
[333206810,1721946633397,-165.45055118,0.000101,3]
[333206869,1721946637944,-634.54944882,0.000101,3]
[333206871,1721946637955,-346.26,0.00010107,2]
[333206873,1721946637965,-150.99,0.00010107,2]
[333206875,1721946637975,-348.14,0.00010192,2]
[333206877,1721946637985,-140.52801718,0.00010192,2]
[333206879,1721946638294,-359.46198282,0.00010192,2]
[333206880,1721946638304,-1100.0,0.000102,3]
[333206881,1721946638315,-1400.0,0.000103,3]
[333206883,1721946638324,-451.76349187,0.00010378,2]
[333206885,1721946638337,-396.67650813,0.00010378,2]
[333206886,1721946638347,-150.0,0.00010389,2]
[333206887,1721946638356,-452.27796983,0.0001039,2]
[333206889,1721946638368,-407.54,0.0001039,2]
[333206890,1721946638379,-4240.98646981,0.0001039,2]
[333206891,1721946638388,-410.40624128,0.000104,2]
[333206893,1721946638405,-660.96571054,0.000104,2]
[333206894,1721946638416,-298.93586434,0.000104,2]
[333206901,1721946640051,-374.07477111,0.000104,2]
[333206904,1721946640181,-174.32101273,0.000104,2]
[333206905,1721946640191,-17251.22243076,0.000104,2]
[333206906,1721946640203,-3467.062364,0.000104,2]
[333206942,1721946643102,-1879.17624788,0.000104,2]
[333206943,1721946643115,-3530.3334819,0.000104,2]
[333206944,1721946643126,-880.45,0.000104,2]
[333206945,1721946643143,-2565.29777546,0.000104,2]
[333206946,1721946643153,-3571.3832,0.000104,2]
[333206947,1721946643163,-4410.7835,0.000104,2]
[333206948,1721946643172,-200.0,0.000104,3]
[333206949,1721946643182,-902.97,0.00010467,2]
[333206950,1721946643191,-200.0,0.000105,3]
[333206951,1721946643201,-200.0,0.000106,3]
[333206952,1721946643210,-200.0,0.00010633,2]
[333206953,1721946643220,-200.0,0.000107,3]
[333206954,1721946643230,-5668.1376,0.0001072,2]
[333206955,1721946643239,-150.0,0.00010727,2]
[333206956,1721946643249,-150.0,0.00010747,2]
[333206957,1721946643259,-150.0,0.00010771,2]
[333206958,1721946643269,-150.0,0.00010781,2]
[333206959,1721946643278,-150.0,0.00010789,2]
[333206960,1721946643293,-150.0,0.00010794,2]
[333206961,1721946643304,-1045.0,0.000108,3]
[333206962,1721946643314,-420.0,0.0001081,2]
[333206963,1721946643323,-150.0,0.00010811,2]
[333206964,1721946643332,-150.0,0.00010813,2]
[333206965,1721946643342,-150.0,0.00010814,2]
[333206966,1721946643351,-5828.0,0.0001082,2]
[333206967,1721946643361,-5121.0,0.0001082,2]
[333206968,1721946643370,-1202.0,0.0001082,2]
[333206969,1721946643380,-1669.0,0.0001082,2]
[333206970,1721946643390,-21299.154,0.0001082,2]
[333206972,1721946643399,-150.0,0.00010823,2]
[333206973,1721946643409,-150.0,0.00010834,2]
[333206975,1721946643418,-150.0,0.00010841,2]
[333206977,1721946643428,-150.0,0.00010843,2]
[333206979,1721946643438,-150.0,0.00010858,2]
[333206981,1721946643447,-7500.0,0.00010858,2]
[333206982,1721946643457,-150.0,0.00010866,2]
[333206983,1721946643467,-150.0,0.00010877,2]
[333206984,1721946643476,-170591.18585843,0.0001088,2]
[333206985,1721946643486,-150.0,0.00010881,2]
[333206986,1721946643495,-150.0,0.00010882,2]
[333206987,1721946643512,-150.0,0.00010886,2]
[333206988,1721946643522,-1000.0,0.00010893,2]
[333206989,1721946643532,-150.0,0.00010897,2]
[333206990,1721946643545,-45894.98899565,0.00010899,2]
[333206991,1721946643554,-2991.1165,0.000109,2]
[333206992,1721946643563,-260.25949932,0.000109,2]
[333206993,1721946643573,-150.0,0.000109,2]
[333206994,1721946643584,-150.0,0.00010905,2]
[333206995,1721946643594,-500.0,0.00010912,2]
[333206996,1721946643604,-150.0,0.00010956,2]
[333206997,1721946643613,-500.0,0.00010958,2]
[333206998,1721946643623,-235.5888833,0.00010958,2]
[333206999,1721946643632,-500.81495668,0.00010958,2]
[333207000,1721946643642,-500.0,0.00010958,2]
[333207001,1721946643651,-500.0,0.00010958,2]
[333207002,1721946643661,-500.0,0.00010958,2]
[333207003,1721946643671,-500.0,0.00010958,2]
[333207004,1721946643680,-483.50894611,0.00010958,2]
[333207005,1721946643689,-500.0,0.00010958,2]
[333207006,1721946643699,-500.0,0.00010958,2]
[333207007,1721946643709,-544.26675224,0.00010958,2]
[333207008,1721946643718,-500.0,0.00010958,2]
[333207009,1721946643728,-185.78911443,0.00010958,2]
[333207010,1721946643739,-500.0,0.00010958,2]
[333207011,1721946643748,-500.0,0.00010958,2]
[333207012,1721946643758,-497.62005639,0.00010958,2]
[333207013,1721946643767,-500.0,0.00010958,2]
[333207014,1721946643776,-500.95786591,0.00010958,2]
[333207015,1721946643790,-500.0,0.00010958,2]
[333207016,1721946643799,-500.0,0.00010958,2]
[333207017,1721946643809,-504.90787821,0.00010958,2]
[333207018,1721946643818,-500.7154915,0.00010958,2]
[333207019,1721946643828,-500.0,0.00010958,2]
[333207020,1721946643837,-506.40134277,0.00010958,2]
[333207021,1721946643847,-500.0,0.00010958,2]
[333207022,1721946643856,-501.24089136,0.00010958,2]
[333207023,1721946643865,-500.0,0.00010958,2]
[333207024,1721946643874,-602.69866956,0.00010958,2]
[333207025,1721946643884,-505.38127687,0.00010958,2]
[333207026,1721946643893,-500.0,0.00010958,2]
[333207027,1721946643903,-501.79929062,0.00010958,2]
[333207028,1721946643913,-500.0,0.00010958,2]
[333207029,1721946643922,-500.0,0.00010958,2]
[333207030,1721946643932,-528.94750223,0.00010958,2]
[333207031,1721946643941,-500.58012946,0.00010958,2]
[333207032,1721946643951,-644.60724448,0.00010958,2]
[333207033,1721946643961,-500.35898585,0.00010958,2]
[333207034,1721946643970,-500.0,0.00010958,2]
[333207035,1721946643979,-500.0,0.00010958,2]
[333207036,1721946643989,-500.0,0.00010958,2]
[333207037,1721946643999,-500.63027092,0.00010958,2]
[333207038,1721946644008,-500.24045796,0.00010958,2]
[333207039,1721946644017,-500.0,0.00010958,2]
[333207040,1721946644027,-500.0,0.00010958,2]
[333207041,1721946644038,-500.0,0.00010958,2]
[333207042,1721946644048,-501.1139728,0.00010958,2]
[333207043,1721946644058,-500.57343303,0.00010958,2]
[333207044,1721946644068,-500.0,0.00010958,2]
[333207045,1721946644077,-500.33242699,0.00010958,2]
[333207046,1721946644087,-500.38167359,0.00010958,2]
[333207047,1721946644097,-393.18529715,0.00010958,2]
[333207048,1721946644107,-500.0,0.00010958,2]
[333207049,1721946644117,-327.88184783,0.00010958,2]
[333207050,1721946644127,-533.90841053,0.00010958,2]
[333207051,1721946644137,-500.0,0.00010958,2]
[333207052,1721946644147,-502.07810243,0.00010958,2]
[333207053,1721946644157,-500.0,0.00010958,2]
[333207054,1721946644167,-381.77283429,0.00010958,2]
[333207055,1721946644177,-500.0,0.00010958,2]
[333207056,1721946644186,-500.0,0.00010958,2]
[333207057,1721946644196,-500.0,0.00010958,2]
[333207058,1721946644206,-500.0,0.00010958,2]
[333207059,1721946644219,-201.60660502,0.00010958,2]
[333207060,1721946644229,-500.55349502,0.00010958,2]
[333207061,1721946644239,-510.84326528,0.00010958,2]
[333207062,1721946644249,-515.4473325,0.00010958,2]
[333207063,1721946644259,-517.30177917,0.00010958,2]
[333207064,1721946644268,-500.0,0.00010958,2]
[333207065,1721946644278,-500.0,0.00010958,2]
[333207066,1721946644289,-500.0,0.00010958,2]
[333207067,1721946644299,-500.0,0.00010958,2]
[333207068,1721946644308,-366.21303576,0.00010958,2]
[333207069,1721946644318,-500.0,0.00010958,2]
[333207070,1721946644327,-500.0,0.00010958,2]
[333207071,1721946644337,-500.0,0.00010958,2]
[333207072,1721946644347,-500.0,0.00010958,2]
[333207073,1721946644357,-500.0,0.00010958,2]
[333207074,1721946644367,-500.0,0.00010958,2]
[333207075,1721946644377,-500.0,0.00010958,2]
[333207076,1721946644387,-500.0,0.00010958,2]
[333207077,1721946644397,-160.18,0.00010958,2]
[333207078,1721946644406,-500.0,0.00010958,2]
[333207079,1721946644416,-513.08,0.00010958,2]
[333207080,1721946644425,-500.0,0.00010958,2]
[333207081,1721946644434,-521.82541979,0.00010958,2]
[333207082,1721946644444,-501.10603633,0.00010958,2]
[333207083,1721946644453,-500.0,0.00010958,2]
[333207084,1721946644462,-500.0,0.00010958,2]
[333207085,1721946644471,-462.98859855,0.00010958,2]
[333207086,1721946644480,-500.0,0.00010958,2]
[333207087,1721946644490,-500.0,0.00010958,2]
[333207088,1721946644499,-500.0,0.00010958,2]
[333207089,1721946644510,-349.27,0.00010958,2]
[333207090,1721946644521,-500.0,0.00010958,2]
[333207091,1721946644531,-264.68,0.00010958,2]
[333207092,1721946644543,-500.0,0.00010958,2]
[333207093,1721946644552,-500.0,0.00010958,2]
[333207094,1721946644561,-500.0,0.00010958,2]
[333207095,1721946644571,-500.0,0.00010958,2]
[333207096,1721946644580,-617.35426811,0.00010958,2]
[333207097,1721946644592,-513.42205035,0.00010958,2]
[333207098,1721946644601,-500.0,0.00010958,2]
[333207099,1721946644612,-500.0,0.00010958,2]
[333207100,1721946644623,-500.0,0.00010958,2]
[333207101,1721946644633,-500.0,0.00010958,2]
[333207102,1721946644643,-500.0,0.00010958,2]
[333207103,1721946644652,-500.0,0.00010958,2]
[333207104,1721946644661,-500.0,0.00010958,2]
[333207105,1721946644671,-207.55,0.00010958,2]
[333207106,1721946644680,-500.0,0.00010958,2]
[333207107,1721946644690,-500.0,0.00010958,2]
[333207108,1721946644699,-500.0,0.00010958,2]
[333207109,1721946644708,-577.67,0.00010958,2]
[333207110,1721946644718,-500.0,0.00010958,2]
[333207111,1721946644727,-254.35,0.00010958,2]
[333207112,1721946644737,-538.33,0.00010958,2]
[333207113,1721946644746,-500.0,0.00010958,2]
[333207114,1721946644756,-579.46,0.00010958,2]
[333207115,1721946644765,-500.0,0.00010958,2]
[333207116,1721946644775,-381.65,0.00010958,2]
[333207117,1721946644784,-500.0,0.00010958,2]
[333207118,1721946644795,-500.0,0.00010958,2]
[333207119,1721946644804,-500.0,0.00010958,2]
[333207120,1721946644814,-251.09,0.00010958,2]
[333207121,1721946644824,-500.0,0.00010958,2]
[333207122,1721946644833,-500.0,0.00010958,2]
[333207123,1721946644842,-500.0,0.00010958,2]
[333207124,1721946644851,-500.0,0.00010958,2]
[333207125,1721946645072,-500.0,0.00010958,2]
[333207126,1721946645082,-499.97585589,0.00010958,2]
[333207127,1721946645091,-500.0,0.00010958,2]
[333207128,1721946645102,-500.0,0.00010958,2]
[333207129,1721946645112,-500.0,0.00010958,2]
[333207130,1721946645122,-500.0,0.00010958,2]
[333207131,1721946645131,-500.0,0.00010958,2]
[333207132,1721946645141,-500.0,0.00010958,2]
[333207133,1721946645151,-500.0,0.00010958,2]
[333207134,1721946645160,-500.0,0.00010958,2]
[333207135,1721946645169,-363.87,0.00010958,2]
[333207136,1721946645178,-500.0,0.00010958,2]
[333207137,1721946645187,-500.0,0.00010958,2]
[333207138,1721946645196,-500.0,0.00010958,2]
[333207139,1721946645206,-500.0,0.00010958,2]
[333207140,1721946645216,-500.0,0.00010958,2]
[333207141,1721946645225,-500.0,0.00010958,2]
[333207142,1721946645234,-500.0,0.00010958,2]
[333207143,1721946645243,-500.0,0.00010958,2]
[333207144,1721946645252,-500.0,0.00010958,2]
[333207145,1721946645261,-500.0,0.00010958,2]
[333207146,1721946645270,-500.0,0.00010958,2]
[333207147,1721946645280,-500.0,0.00010958,2]
[333207148,1721946645292,-500.0,0.00010958,2]
[333207149,1721946645301,-500.0,0.00010958,2]
[333207150,1721946645311,-500.0,0.00010958,2]
[333207151,1721946645320,-500.0,0.00010958,2]
[333207152,1721946645329,-500.0,0.00010958,2]
[333207153,1721946645338,-500.0,0.00010958,2]
[333207154,1721946645347,-500.0,0.00010958,2]
[333207155,1721946645356,-510.08450892,0.00010958,2]
[333207156,1721946645366,-500.0,0.00010958,2]
[333207157,1721946645375,-500.0,0.00010958,2]
[333207158,1721946645384,-500.0,0.00010958,2]
[333207159,1721946645393,-150.0,0.00010958,2]
[333207160,1721946645403,-500.0,0.00010958,2]
[333207161,1721946645412,-500.0,0.00010958,2]
[333207162,1721946645421,-576.45,0.00010958,2]
[333207163,1721946645431,-500.0,0.00010958,2]
[333207164,1721946645440,-500.0,0.00010958,2]
[333207165,1721946645450,-500.0,0.00010958,2]
[333207166,1721946645459,-500.0,0.00010958,2]
[333207167,1721946645468,-500.0,0.00010958,2]
[333207168,1721946645478,-500.0,0.00010958,2]
[333207169,1721946645487,-500.0,0.00010958,2]
[333207170,1721946645496,-500.0,0.00010958,2]
[333207171,1721946645506,-500.0,0.00010958,2]
[333207172,1721946645519,-578.51005091,0.00010958,2]
[333207173,1721946645529,-500.0,0.00010958,2]
[333207174,1721946645541,-500.0,0.00010958,2]
[333207175,1721946645551,-500.0,0.00010958,2]
[333207176,1721946645560,-500.0,0.00010958,2]
[333207177,1721946645569,-500.0,0.00010958,2]
[333207178,1721946645578,-500.0,0.00010958,2]
[333207179,1721946645588,-500.0,0.00010958,2]
[333207180,1721946645598,-500.0,0.00010958,2]
[333207181,1721946645607,-500.0,0.00010958,2]
[333207182,1721946645616,-500.0,0.00010958,2]
[333207183,1721946645625,-500.0,0.00010958,2]
[333207184,1721946645635,-500.0,0.00010958,2]
[333207185,1721946645644,-500.0,0.00010958,2]
[333207186,1721946645653,-280.85224702,0.00010958,2]
[333207187,1721946645663,-500.0,0.00010958,2]
[333207188,1721946645673,-500.0,0.00010958,2]
[333207189,1721946645683,-500.0,0.00010958,2]
[333207190,1721946645693,-500.0,0.00010958,2]
[333207191,1721946645702,-504.60789863,0.00010958,2]
[333207192,1721946645712,-500.0,0.00010958,2]
[333207193,1721946645723,-504.44793238,0.00010958,2]
[333207194,1721946645732,-500.0,0.00010958,2]
[333207195,1721946645743,-500.0,0.00010958,2]
[333207196,1721946645754,-500.28,0.00010958,2]
[333207197,1721946645764,-503.27160856,0.00010958,2]
[333207198,1721946645773,-500.0,0.00010958,2]
[333207199,1721946645783,-500.0,0.00010958,2]
[333207200,1721946645794,-500.0,0.00010958,2]
[333207201,1721946645803,-500.0,0.00010958,2]
[333207202,1721946645813,-500.0,0.00010958,2]
[333207203,1721946645822,-500.0,0.00010958,2]
[333207204,1721946645831,-500.0,0.00010958,2]
[333207205,1721946645841,-500.0,0.00010958,2]
[333207206,1721946645851,-369.06,0.00010958,2]
[333207208,1721946645861,-500.0,0.00010958,2]
[333207209,1721946645871,-500.0,0.00010958,2]
[333207210,1721946645880,-436.36,0.00010958,2]
[333207211,1721946645889,-500.0,0.00010958,2]
[333207212,1721946645898,-500.0,0.00010958,2]
[333207213,1721946645908,-500.0,0.00010958,2]
[333207214,1721946645916,-500.0,0.00010958,2]
[333207215,1721946645927,-500.0,0.00010958,2]
[333207216,1721946645936,-500.0,0.00010958,2]
[333207217,1721946645945,-500.0,0.00010958,2]
[333207218,1721946645954,-443.42070969,0.00010958,2]
[333207219,1721946645964,-500.0,0.00010958,2]
[333207220,1721946645973,-500.69653037,0.00010958,2]
[333207221,1721946645982,-500.0,0.00010958,2]
[333207222,1721946645991,-500.0,0.00010958,2]
[333207223,1721946646001,-500.0,0.00010958,2]
[333207224,1721946646010,-500.0,0.00010958,2]
[333207225,1721946646020,-503.38845389,0.00010958,2]
[333207226,1721946646029,-500.0,0.00010958,2]
[333207227,1721946646040,-502.01175747,0.00010958,2]
[333207228,1721946646050,-500.0,0.00010958,2]
[333207229,1721946646062,-500.0,0.00010958,2]
[333207230,1721946646071,-257.68260515,0.00010958,2]
[333207231,1721946646080,-500.0,0.00010958,2]
[333207232,1721946646090,-500.0,0.00010958,2]
[333207233,1721946646100,-500.0,0.00010958,2]
[333207234,1721946646109,-593.52142859,0.00010958,2]
[333207235,1721946646119,-233.7254643,0.00010958,2]
[333207236,1721946646128,-505.32530667,0.00010958,2]
[333207237,1721946646139,-500.0,0.00010958,2]
[333207238,1721946646148,-176.92666474,0.00010958,2]
[333207239,1721946646157,-503.87751257,0.00010958,2]
[333207240,1721946646166,-500.0,0.00010958,2]
[333207241,1721946646176,-500.0,0.00010958,2]
[333207242,1721946646187,-503.35628669,0.00010958,2]
[333207243,1721946646196,-501.60605118,0.00010958,2]
[333207244,1721946646206,-504.03058253,0.00010958,2]
[333207245,1721946646215,-500.0,0.00010958,2]
[333207246,1721946646225,-504.95475144,0.00010958,2]
[333207247,1721946646235,-503.09337276,0.00010958,2]
[333207248,1721946646245,-500.0,0.00010958,2]
[333207249,1721946646254,-500.0,0.00010958,2]
[333207250,1721946646263,-500.0,0.00010958,2]
[333207251,1721946646273,-500.0,0.00010958,2]
[333207252,1721946646282,-500.0,0.00010958,2]
[333207253,1721946646293,-500.0,0.00010958,2]
[333207254,1721946646302,-500.0,0.00010958,2]
[333207255,1721946646311,-500.0,0.00010958,2]
[333207256,1721946646320,-500.0,0.00010958,2]
[333207257,1721946646330,-500.0,0.00010958,2]
[333207258,1721946646339,-500.0,0.00010958,2]
[333207259,1721946646348,-500.0,0.00010958,2]
[333207260,1721946646358,-500.0,0.00010958,2]
[333207261,1721946646367,-500.0,0.00010958,2]
[333207262,1721946646376,-500.0,0.00010958,2]
[333207263,1721946646385,-500.0,0.00010958,2]
[333207264,1721946646396,-500.0,0.00010958,2]
[333207267,1721946646405,-505.63376055,0.00010958,2]
[333207269,1721946646415,-500.0,0.00010958,2]
[333207271,1721946646425,-500.0,0.00010958,2]
[333207273,1721946646435,-500.0,0.00010958,2]
[333207275,1721946646445,-500.0,0.00010958,2]
[333207276,1721946646455,-500.0,0.00010958,2]
[333207277,1721946646465,-500.0,0.00010958,2]
[333207278,1721946646475,-500.0,0.00010958,2]
[333207279,1721946646484,-500.0,0.00010958,2]
[333207280,1721946646494,-500.0,0.00010958,2]
[333207281,1721946646507,-510.32,0.00010958,2]
[333207282,1721946646516,-500.0,0.00010958,2]
[333207283,1721946646525,-500.0,0.00010958,2]
[333207284,1721946646535,-500.0,0.00010958,2]
[333207285,1721946646547,-500.0,0.00010958,2]
[333207286,1721946646556,-500.0,0.00010958,2]
[333207287,1721946646565,-500.0,0.00010958,2]
[333207288,1721946646574,-500.0,0.00010958,2]
[333207289,1721946646584,-500.0,0.00010958,2]
[333207290,1721946646595,-500.0,0.00010958,2]
[333207291,1721946646605,-500.0,0.00010958,2]
[333207292,1721946646614,-500.0,0.00010958,2]
[333207293,1721946646623,-500.0,0.00010958,2]
[333207294,1721946646632,-500.0,0.00010958,2]
[333207295,1721946646642,-500.0,0.00010958,2]
[333207296,1721946646651,-500.0,0.00010958,2]
[333207297,1721946646660,-500.0,0.00010958,2]
[333207298,1721946646669,-500.0,0.00010958,2]
[333207299,1721946646679,-500.0,0.00010958,2]
[333207300,1721946646688,-500.0,0.00010958,2]
[333207301,1721946646698,-500.0,0.00010958,2]
[333207302,1721946646707,-500.0,0.00010958,2]
[333207303,1721946646717,-500.0,0.00010958,2]
[333207304,1721946646726,-504.74191199,0.00010958,2]
[333207305,1721946646735,-500.0,0.00010958,2]
[333207306,1721946646745,-500.0,0.00010958,2]
[333207307,1721946646754,-500.0,0.00010958,2]
[333207308,1721946646764,-500.0,0.00010958,2]
[333207309,1721946646773,-500.0,0.00010958,2]
[333207310,1721946646783,-500.0,0.00010958,2]
[333207311,1721946646795,-500.0,0.00010958,2]
[333207312,1721946646804,-500.0,0.00010958,2]
[333207313,1721946646814,-500.0,0.00010958,2]
[333207314,1721946646823,-309.10680784,0.00010958,2]
[333207315,1721946646833,-500.0,0.00010958,2]
[333207316,1721946646843,-500.0,0.00010958,2]
[333207317,1721946646852,-500.0,0.00010958,2]
[333207318,1721946646863,-500.0,0.00010958,2]